[Event "Betsys MČR v online bleskovém šachu 2021"]
[Site "Chess.com"]
[Date "2021.04.17"]
[Round "10"]
[White "Terilka"]
[Black "FaceOfLightning"]
[Result "0-1"]
[WhiteElo "1560"]
[BlackElo "1951"]
[TimeControl "180+1"]
[EndTime "10:39:40 PDT"]
[Termination "Uživatel FaceOfLightning zvítězil po vzdání soupeře"]

1. d4 {[%clk 0:03:00.9]} 1... e6 {[%clk 0:02:57.1]} 2. Nf3 {[%clk 0:02:58.8]}
2... f5 {[%clk 0:02:56.2]} 3. e3 {[%clk 0:02:59]} 3... Nf6 {[%clk 0:02:55.4]} 4.
Bd3 {[%clk 0:02:53.8]} 4... Be7 {[%clk 0:02:53.4]} 5. c4 {[%clk 0:02:53.3]} 5...
O-O {[%clk 0:02:52]} 6. Nc3 {[%clk 0:02:52.9]} 6... d6 {[%clk 0:02:50]} 7. O-O
{[%clk 0:02:52.1]} 7... Qe8 {[%clk 0:02:49.1]} 8. e4 {[%clk 0:02:44.6]} 8...
fxe4 {[%clk 0:02:35.9]} 9. Nxe4 {[%clk 0:02:45.5]} 9... Nxe4 {[%clk 0:02:24.1]}
10. Bxe4 {[%clk 0:02:46.4]} 10... Nd7 {[%clk 0:02:23.6]} 11. Qd3 {[%clk
0:02:42.7]} 11... Nf6 {[%clk 0:02:23.1]} 12. Be3 {[%clk 0:02:37]} 12... Nxe4
{[%clk 0:02:18.7]} 13. Qxe4 {[%clk 0:02:37.9]} 13... Qh5 {[%clk 0:02:11.7]} 14.
Rfe1 {[%clk 0:02:29.1]} 14... c6 {[%clk 0:02:02.8]} 15. b3 {[%clk 0:02:04.9]}
15... Bf6 {[%clk 0:02:01.4]} 16. Rad1 {[%clk 0:02:03.4]} 16... Bd7 {[%clk
0:01:59.7]} 17. d5 {[%clk 0:01:53.2]} 17... Rae8 {[%clk 0:01:52.3]} 18. Qd3
{[%clk 0:01:43.8]} 18... exd5 {[%clk 0:01:48.6]} 19. cxd5 {[%clk 0:01:43.3]}
19... c5 {[%clk 0:01:43.1]} 20. Qc4 {[%clk 0:01:13.1]} 20... Bg4 {[%clk
0:01:34.9]} 21. Qe2 {[%clk 0:01:00.2]} 21... Be5 {[%clk 0:01:30]} 22. g3 {[%clk
0:00:53.7]} 22... Bxf3 {[%clk 0:01:28.8]} 23. Qb5 {[%clk 0:00:49.1]} 23... Qh3
{[%clk 0:01:27.3]} 24. Qf1 {[%clk 0:00:47.3]} 24... Qxf1+ {[%clk 0:01:24.9]} 25.
Rxf1 {[%clk 0:00:48.2]} 25... Bxd1 {[%clk 0:01:24.8]} 26. Rxd1 {[%clk
0:00:49.1]} 26... Rf7 {[%clk 0:01:21.8]} 27. Rc1 {[%clk 0:00:45.8]} 27... b6
{[%clk 0:01:18.6]} 28. a4 {[%clk 0:00:40.6]} 28... Rfe7 {[%clk 0:01:13.8]} 29.
Bd2 {[%clk 0:00:19.5]} 29... Bd4 {[%clk 0:01:12.8]} 30. a5 {[%clk 0:00:18.7]}
30... Re2 {[%clk 0:01:10.5]} 31. Be3 {[%clk 0:00:14.3]} 31... Bxe3 {[%clk
0:01:09.1]} 32. fxe3 {[%clk 0:00:15.2]} 32... R8xe3 {[%clk 0:01:07.8]} 33. axb6
{[%clk 0:00:15.6]} 33... axb6 {[%clk 0:01:07]} 34. Ra1 {[%clk 0:00:16.2]} 34...
Re1+ {[%clk 0:01:05.5]} 35. Rxe1 {[%clk 0:00:16.9]} 35... Rxe1+ {[%clk
0:01:05.6]} 36. Kf2 {[%clk 0:00:17.8]} 36... Rb1 {[%clk 0:01:05.5]} 0-1

[Event "Betsys MČR v online bleskovém šachu 2021"]
[Site "Chess.com"]
[Date "2021.04.17"]
[Round "10"]
[White "Hroch-hroch"]
[Black "Staci_fiknout_Navara_Plat"]
[Result "1-0"]
[WhiteElo "2246"]
[BlackElo "1929"]
[TimeControl "180+1"]
[EndTime "10:39:41 PDT"]
[Termination "Uživatel Hroch-hroch zvítězil po vzdání soupeře"]

1. e4 {[%clk 0:03:00.9]} 1... d5 {[%clk 0:02:59.7]} 2. e5 {[%clk 0:02:59.9]}
2... c5 {[%clk 0:02:58.1]} 3. Nf3 {[%clk 0:02:58.7]} 3... Bg4 {[%clk 0:02:58]}
4. c3 {[%clk 0:02:56]} 4... Nc6 {[%clk 0:02:53.2]} 5. Bb5 {[%clk 0:02:49.2]}
5... Qb6 {[%clk 0:02:51.8]} 6. Na3 {[%clk 0:02:44]} 6... a6 {[%clk 0:02:48.8]}
7. Ba4 {[%clk 0:02:42.6]} 7... O-O-O {[%clk 0:02:31.7]} 8. Bxc6 {[%clk
0:02:37.4]} 8... Qxc6 {[%clk 0:02:28.5]} 9. h3 {[%clk 0:02:37.9]} 9... Bxf3
{[%clk 0:02:27.6]} 10. Qxf3 {[%clk 0:02:37.7]} 10... f6 {[%clk 0:02:27.6]} 11.
d4 {[%clk 0:02:29.8]} 11... fxe5 {[%clk 0:02:06.5]} 12. dxe5 {[%clk 0:02:27.7]}
12... e6 {[%clk 0:01:57.5]} 13. O-O {[%clk 0:02:24.5]} 13... Ne7 {[%clk
0:01:56.5]} 14. Bg5 {[%clk 0:02:21.1]} 14... Re8 {[%clk 0:01:51.1]} 15. Bxe7
{[%clk 0:02:19.7]} 15... Rxe7 {[%clk 0:01:43.5]} 16. c4 {[%clk 0:02:17.2]} 16...
g6 {[%clk 0:01:36]} 17. Rad1 {[%clk 0:02:12.4]} 17... d4 {[%clk 0:01:28]} 18.
Qxc6+ {[%clk 0:02:10.5]} 18... bxc6 {[%clk 0:01:27.5]} 19. Nc2 {[%clk
0:02:08.1]} 19... Bh6 {[%clk 0:01:19.9]} 20. Ne1 {[%clk 0:02:02.5]} 20... Rf8
{[%clk 0:01:16.5]} 21. Nd3 {[%clk 0:02:01.3]} 21... Rf5 {[%clk 0:00:57.3]} 22.
g4 {[%clk 0:01:38.3]} 22... Rf3 {[%clk 0:00:55.9]} 23. Kg2 {[%clk 0:01:38]}
23... Ref7 {[%clk 0:00:52.3]} 24. Nxc5 {[%clk 0:01:37.4]} 24... a5 {[%clk
0:00:30.8]} 25. Nxe6 {[%clk 0:01:29.6]} 25... Kd7 {[%clk 0:00:08]} 26. Nxd4
{[%clk 0:01:22.1]} 26... R3f4 {[%clk 0:00:05]} 27. e6+ {[%clk 0:01:21.4]} 27...
Kc7 {[%clk 0:00:04.8]} 28. exf7 {[%clk 0:01:20.4]} 28... Rxf7 {[%clk 0:00:05.7]}
29. Ne6+ {[%clk 0:01:19.6]} 29... Kb6 {[%clk 0:00:05.3]} 30. g5 {[%clk
0:01:16.4]} 30... Bg7 {[%clk 0:00:03.8]} 31. Nxg7 {[%clk 0:01:16.4]} 31... Rxg7
{[%clk 0:00:04.7]} 32. b3 {[%clk 0:01:15.4]} 32... Kc5 {[%clk 0:00:04.4]} 33.
Rd3 {[%clk 0:01:14.1]} 1-0

[Event "Betsys MČR v online bleskovém šachu 2021"]
[Site "Chess.com"]
[Date "2021.04.17"]
[Round "10"]
[White "Maty122"]
[Black "Berzeger"]
[Result "1-0"]
[WhiteElo "934"]
[BlackElo "1021"]
[TimeControl "180+1"]
[EndTime "10:39:41 PDT"]
[Termination "Uživatel Maty122 zvítězil matem"]

1. e4 {[%clk 0:03:00.9]} 1... e5 {[%clk 0:02:59.4]} 2. Nf3 {[%clk 0:03:00.9]}
2... Nc6 {[%clk 0:02:59.5]} 3. Bb5 {[%clk 0:03:00.7]} 3... a6 {[%clk 0:02:58.9]}
4. Ba4 {[%clk 0:03:00.9]} 4... Bc5 {[%clk 0:02:56.5]} 5. O-O {[%clk 0:02:57.3]}
5... Nf6 {[%clk 0:02:56.1]} 6. Nc3 {[%clk 0:02:56.3]} 6... O-O {[%clk
0:02:55.6]} 7. Nxe5 {[%clk 0:02:52.9]} 7... Qe7 {[%clk 0:02:36.7]} 8. Nxc6
{[%clk 0:02:47]} 8... dxc6 {[%clk 0:02:37.6]} 9. d4 {[%clk 0:02:41]} 9... Bb6
{[%clk 0:02:30.5]} 10. Re1 {[%clk 0:02:29.7]} 10... c5 {[%clk 0:02:20.4]} 11. d5
{[%clk 0:02:21.7]} 11... Bd7 {[%clk 0:02:09.4]} 12. Bxd7 {[%clk 0:02:18.5]}
12... Qxd7 {[%clk 0:02:09.1]} 13. e5 {[%clk 0:02:10.8]} 13... Ne8 {[%clk
0:02:03.3]} 14. Bf4 {[%clk 0:01:57.3]} 14... c6 {[%clk 0:01:39.4]} 15. d6 {[%clk
0:01:53.5]} 15... c4 {[%clk 0:01:17.4]} 16. Na4 {[%clk 0:01:52]} 16... Ba7
{[%clk 0:01:12.9]} 17. Be3 {[%clk 0:01:41.9]} 17... Bxe3 {[%clk 0:01:10.4]} 18.
Rxe3 {[%clk 0:01:38.7]} 18... Qf5 {[%clk 0:01:01.9]} 19. Qf3 {[%clk 0:01:23.7]}
19... Qxc2 {[%clk 0:00:55.1]} 20. Nc5 {[%clk 0:01:12.9]} 20... Qxb2 {[%clk
0:00:47.2]} 21. Rae1 {[%clk 0:01:07.1]} 21... b5 {[%clk 0:00:33.7]} 22. Nd7
{[%clk 0:01:06.6]} 22... Qxa2 {[%clk 0:00:30.2]} 23. Nxf8 {[%clk 0:01:06]} 23...
Kxf8 {[%clk 0:00:31.1]} 24. d7 {[%clk 0:01:01.4]} 24... Nc7 {[%clk 0:00:22.6]}
25. e6 {[%clk 0:00:49.5]} 25... Nd5 {[%clk 0:00:10.9]} 26. Qxf7# {[%clk
0:00:46.8]} 1-0

[Event "Betsys MČR v online bleskovém šachu 2021"]
[Site "Chess.com"]
[Date "2021.04.17"]
[Round "10"]
[White "Evca64"]
[Black "stripe122"]
[Result "1-0"]
[WhiteElo "2068"]
[BlackElo "1804"]
[TimeControl "180+1"]
[EndTime "10:39:43 PDT"]
[Termination "Uživatel Evca64 zvítězil po vzdání soupeře"]

1. e4 {[%clk 0:03:00.9]} 1... c5 {[%clk 0:02:59]} 2. Nf3 {[%clk 0:03:00.3]} 2...
d6 {[%clk 0:02:58.5]} 3. Bb5+ {[%clk 0:02:59.1]} 3... Bd7 {[%clk 0:02:57.1]} 4.
Bxd7+ {[%clk 0:02:58.9]} 4... Nxd7 {[%clk 0:02:57.8]} 5. O-O {[%clk 0:02:58.2]}
5... Ngf6 {[%clk 0:02:58.4]} 6. d3 {[%clk 0:02:57.7]} 6... e6 {[%clk 0:02:58.8]}
7. Ng5 {[%clk 0:02:56.9]} 7... h6 {[%clk 0:02:49.1]} 8. Nh3 {[%clk 0:02:56.6]}
8... Be7 {[%clk 0:02:47.5]} 9. f4 {[%clk 0:02:56.2]} 9... O-O {[%clk 0:02:46.4]}
10. f5 {[%clk 0:02:55.4]} 10... exf5 {[%clk 0:02:41]} 11. Rxf5 {[%clk
0:02:53.4]} 11... Ne5 {[%clk 0:02:38]} 12. Nc3 {[%clk 0:02:49.2]} 12... Ng6
{[%clk 0:02:36.9]} 13. Rf1 {[%clk 0:02:23.3]} 13... a6 {[%clk 0:02:25.7]} 14.
Nf4 {[%clk 0:02:22.4]} 14... Nxf4 {[%clk 0:02:22.3]} 15. Bxf4 {[%clk 0:02:21.7]}
15... b5 {[%clk 0:02:20.2]} 16. Kh1 {[%clk 0:02:17.4]} 16... b4 {[%clk 0:02:16]}
17. Ne2 {[%clk 0:02:16.5]} 17... d5 {[%clk 0:02:09.3]} 18. e5 {[%clk 0:02:15]}
18... Nd7 {[%clk 0:02:06.7]} 19. d4 {[%clk 0:02:10.3]} 19... c4 {[%clk 0:02:02]}
20. Ng3 {[%clk 0:02:06.8]} 20... Bg5 {[%clk 0:02:00.5]} 21. Qg4 {[%clk 0:01:52]}
21... Bxf4 {[%clk 0:01:58.4]} 22. Qxf4 {[%clk 0:01:51.9]} 22... Qe7 {[%clk
0:01:51.5]} 23. Rae1 {[%clk 0:01:49.2]} 23... Qg5 {[%clk 0:01:45.1]} 24. Qf3
{[%clk 0:01:41.4]} 24... Rae8 {[%clk 0:01:41.5]} 25. Qxd5 {[%clk 0:01:37.4]}
25... Nb6 {[%clk 0:01:39.4]} 26. Qc5 {[%clk 0:01:29.3]} 26... Rb8 {[%clk
0:01:35]} 27. d5 {[%clk 0:01:17.6]} 27... Rfc8 {[%clk 0:01:32.3]} 28. Qd4 {[%clk
0:01:15.6]} 28... Rd8 {[%clk 0:01:15.9]} 29. d6 {[%clk 0:01:15.1]} 29... c3
{[%clk 0:00:58.8]} 30. bxc3 {[%clk 0:01:12.5]} 30... bxc3 {[%clk 0:00:58.3]} 31.
Qxc3 {[%clk 0:01:11.4]} 31... Nd5 {[%clk 0:00:59.2]} 32. Qc4 {[%clk 0:01:07.5]}
32... Rb5 {[%clk 0:00:54.3]} 33. a4 {[%clk 0:01:04.4]} 33... Ra5 {[%clk
0:00:51.8]} 34. Ne4 {[%clk 0:00:59.9]} 34... Qg6 {[%clk 0:00:42.7]} 35. Nc5
{[%clk 0:00:57.9]} 35... Rc8 {[%clk 0:00:32.1]} 36. d7 {[%clk 0:00:54.8]} 36...
Rd8 {[%clk 0:00:30.8]} 37. Qxd5 {[%clk 0:00:54.2]} 1-0

[Event "Betsys MČR v online bleskovém šachu 2021"]
[Site "Chess.com"]
[Date "2021.04.17"]
[Round "10"]
[White "p_kana"]
[Black "Bagr92"]
[Result "0-1"]
[WhiteElo "1779"]
[BlackElo "1606"]
[TimeControl "180+1"]
[EndTime "10:39:43 PDT"]
[Termination "Uživatel Bagr92 zvítězil matem"]

1. e4 {[%clk 0:02:59.8]} 1... c5 {[%clk 0:02:56.4]} 2. Nf3 {[%clk 0:02:56.7]}
2... e6 {[%clk 0:02:57.3]} 3. d4 {[%clk 0:02:55.9]} 3... cxd4 {[%clk 0:02:58]}
4. Nxd4 {[%clk 0:02:55.8]} 4... Nf6 {[%clk 0:02:58.6]} 5. Bd3 {[%clk 0:02:54.3]}
5... d6 {[%clk 0:02:59.2]} 6. O-O {[%clk 0:02:51.7]} 6... Be7 {[%clk 0:02:58.6]}
7. Qe2 {[%clk 0:02:51]} 7... O-O {[%clk 0:02:57.7]} 8. Nc3 {[%clk 0:02:49.3]}
8... Nc6 {[%clk 0:02:48.5]} 9. Nxc6 {[%clk 0:02:44.7]} 9... bxc6 {[%clk
0:02:47.9]} 10. Bd2 {[%clk 0:02:40.4]} 10... e5 {[%clk 0:02:46.5]} 11. Kh1
{[%clk 0:02:36.6]} 11... Qc7 {[%clk 0:02:44.6]} 12. Rae1 {[%clk 0:02:30.5]}
12... Bg4 {[%clk 0:02:37.5]} 13. f3 {[%clk 0:02:25.4]} 13... Be6 {[%clk
0:02:34.7]} 14. h3 {[%clk 0:02:19.4]} 14... Nh5 {[%clk 0:02:28]} 15. Kh2 {[%clk
0:02:16.9]} 15... Bh4 {[%clk 0:02:23]} 16. Rd1 {[%clk 0:02:07.2]} 16... Ng3
{[%clk 0:02:21.9]} 17. Qe3 {[%clk 0:02:07.4]} 17... Nxf1+ {[%clk 0:02:20.1]} 18.
Rxf1 {[%clk 0:01:53.7]} 18... d5 {[%clk 0:02:19.5]} 19. exd5 {[%clk 0:01:36.9]}
19... cxd5 {[%clk 0:02:12.8]} 20. Kh1 {[%clk 0:01:26.6]} 20... Rab8 {[%clk
0:01:57.3]} 21. Nd1 {[%clk 0:01:10.8]} 21... f5 {[%clk 0:01:51.7]} 22. Bc3
{[%clk 0:01:05.6]} 22... d4 {[%clk 0:01:50.9]} 23. Bxd4 {[%clk 0:01:04.7]} 23...
exd4 {[%clk 0:01:49.9]} 24. Qxe6+ {[%clk 0:01:04.7]} 24... Kh8 {[%clk
0:01:50.1]} 25. b3 {[%clk 0:00:46.7]} 25... Rbe8 {[%clk 0:01:41.7]} 26. Qd5
{[%clk 0:00:42.8]} 26... Qf4 {[%clk 0:01:33.8]} 27. Bc4 {[%clk 0:00:29.1]} 27...
Bd8 {[%clk 0:01:25.9]} 28. Kg1 {[%clk 0:00:06.8]} 28... Bc7 {[%clk 0:01:05.7]}
29. Kf2 {[%clk 0:00:05.7]} 29... Qg3+ {[%clk 0:01:05.6]} 30. Kg1 {[%clk
0:00:05.5]} 30... Qh2+ {[%clk 0:01:04.1]} 31. Kf2 {[%clk 0:00:05.7]} 31... Bg3#
{[%clk 0:01:03.4]} 0-1

[Event "Betsys MČR v online bleskovém šachu 2021"]
[Site "Chess.com"]
[Date "2021.04.17"]
[Round "10"]
[White "JaraLinhart"]
[Black "Krejcak"]
[Result "0-1"]
[WhiteElo "1703"]
[BlackElo "2011"]
[TimeControl "180+1"]
[EndTime "10:39:45 PDT"]
[Termination "Uživatel Krejcak zvítězil na čas"]

1. e4 {[%clk 0:02:59.1]} 1... e5 {[%clk 0:02:59.6]} 2. Nf3 {[%clk 0:02:57.5]}
2... Nc6 {[%clk 0:02:59.5]} 3. Bb5 {[%clk 0:02:57.8]} 3... a6 {[%clk 0:02:59.1]}
4. Ba4 {[%clk 0:02:57.2]} 4... Nf6 {[%clk 0:02:58.6]} 5. d3 {[%clk 0:02:53.1]}
5... b5 {[%clk 0:02:58.1]} 6. Bb3 {[%clk 0:02:52.4]} 6... Be7 {[%clk 0:02:58.7]}
7. O-O {[%clk 0:02:47.3]} 7... O-O {[%clk 0:02:58.4]} 8. c3 {[%clk 0:02:47]}
8... d5 {[%clk 0:02:58.1]} 9. exd5 {[%clk 0:02:45]} 9... Nxd5 {[%clk 0:02:58]}
10. Re1 {[%clk 0:02:44.4]} 10... Bb7 {[%clk 0:02:57.8]} 11. Nxe5 {[%clk
0:02:29.2]} 11... Nxe5 {[%clk 0:02:57.3]} 12. Rxe5 {[%clk 0:02:28.9]} 12... Qd7
{[%clk 0:02:57.7]} 13. d4 {[%clk 0:02:10.9]} 13... Rae8 {[%clk 0:02:48.2]} 14.
Nd2 {[%clk 0:02:04.8]} 14... Nf4 {[%clk 0:02:47.1]} 15. Nf3 {[%clk 0:01:48.2]}
15... Nxg2 {[%clk 0:02:46.2]} 16. d5 {[%clk 0:01:04.4]} 16... Qg4 {[%clk
0:02:35.5]} 17. Kh1 {[%clk 0:00:56.5]} 17... Bd6 {[%clk 0:02:32.3]} 18. Rxe8
{[%clk 0:00:54]} 18... Rxe8 {[%clk 0:02:31.7]} 19. Bd2 {[%clk 0:00:37.9]} 19...
Nh4 {[%clk 0:02:18.6]} 20. Nxh4 {[%clk 0:00:17.6]} 20... Qxh4 {[%clk 0:02:18.1]}
21. Qg1 {[%clk 0:00:11.4]} 21... Qh5 {[%clk 0:01:58.4]} 22. Be3 {[%clk
0:00:08.6]} 22... Bxd5+ {[%clk 0:01:52]} 23. Bxd5 {[%clk 0:00:08.4]} 23... Qxd5+
{[%clk 0:01:51.7]} 24. Qg2 {[%clk 0:00:09.3]} 24... Qxg2+ {[%clk 0:01:50]} 25.
Kxg2 {[%clk 0:00:09.5]} 25... f6 {[%clk 0:01:48.6]} 26. Kf3 {[%clk 0:00:09.3]}
26... Kf7 {[%clk 0:01:48.5]} 27. Rg1 {[%clk 0:00:09.6]} 27... g5 {[%clk
0:01:42]} 28. Rg4 {[%clk 0:00:08.6]} 28... h5 {[%clk 0:01:39.6]} 29. Re4 {[%clk
0:00:06.9]} 29... Rxe4 {[%clk 0:01:37.7]} 30. Kxe4 {[%clk 0:00:07.2]} 30... Ke6
{[%clk 0:01:37.7]} 31. Kd4 {[%clk 0:00:04.4]} 31... c5+ {[%clk 0:01:35]} 32. Ke4
{[%clk 0:00:04.3]} 32... f5+ {[%clk 0:01:33.9]} 33. Kf3 {[%clk 0:00:03.7]} 33...
f4 {[%clk 0:01:32.7]} 34. Bd2 {[%clk 0:00:03.4]} 34... Ke5 {[%clk 0:01:31.7]}
35. h4 {[%clk 0:00:03.5]} 35... g4+ {[%clk 0:01:28.7]} 36. Ke2 {[%clk
0:00:03.5]} 36... Ke4 {[%clk 0:01:28.5]} 37. Bc1 {[%clk 0:00:03.1]} 37... Be7
{[%clk 0:01:28]} 0-1

[Event "Betsys MČR v online bleskovém šachu 2021"]
[Site "Chess.com"]
[Date "2021.04.17"]
[Round "10"]
[White "PetrVelicka"]
[Black "ghostdog777"]
[Result "1-0"]
[WhiteElo "2366"]
[BlackElo "2137"]
[TimeControl "180+1"]
[EndTime "10:39:46 PDT"]
[Termination "Uživatel PetrVelicka zvítězil na čas"]

1. e4 {[%clk 0:03:00.9]} 1... e5 {[%clk 0:02:57.9]} 2. Nf3 {[%clk 0:02:59.7]}
2... d6 {[%clk 0:02:56.1]} 3. d4 {[%clk 0:02:58.3]} 3... Nd7 {[%clk 0:02:55.4]}
4. Bc4 {[%clk 0:02:57]} 4... c6 {[%clk 0:02:55.3]} 5. O-O {[%clk 0:02:55.8]}
5... Be7 {[%clk 0:02:55.1]} 6. Nc3 {[%clk 0:02:53.1]} 6... Ngf6 {[%clk 0:02:55]}
7. Re1 {[%clk 0:02:52.2]} 7... O-O {[%clk 0:02:54.5]} 8. a4 {[%clk 0:02:52.1]}
8... b6 {[%clk 0:02:52.8]} 9. d5 {[%clk 0:02:51]} 9... c5 {[%clk 0:02:50.6]} 10.
a5 {[%clk 0:02:49.6]} 10... Rb8 {[%clk 0:02:49]} 11. axb6 {[%clk 0:02:48.7]}
11... axb6 {[%clk 0:02:49.1]} 12. Bb5 {[%clk 0:02:46.3]} 12... Ne8 {[%clk
0:02:41.2]} 13. Nd2 {[%clk 0:02:45.9]} 13... Nc7 {[%clk 0:02:40.4]} 14. Nc4
{[%clk 0:02:41.5]} 14... Nxb5 {[%clk 0:02:10.7]} 15. Nxb5 {[%clk 0:02:39.4]}
15... Nf6 {[%clk 0:02:10.3]} 16. Bg5 {[%clk 0:02:36.5]} 16... Ne8 {[%clk
0:02:09.3]} 17. Bxe7 {[%clk 0:02:20]} 17... Qxe7 {[%clk 0:02:03.2]} 18. Ra7
{[%clk 0:02:18.6]} 18... Qd8 {[%clk 0:01:15.3]} 19. Qa1 {[%clk 0:02:03.6]} 19...
f5 {[%clk 0:00:55.4]} 20. f3 {[%clk 0:01:47.6]} 20... Rf6 {[%clk 0:00:20.4]} 21.
Qc1 {[%clk 0:01:38]} 21... f4 {[%clk 0:00:17]} 22. Qd2 {[%clk 0:01:34.2]} 22...
g5 {[%clk 0:00:16.9]} 23. h3 {[%clk 0:01:32.3]} 23... h5 {[%clk 0:00:16.4]} 24.
Kf2 {[%clk 0:01:30.4]} 24... g4 {[%clk 0:00:16]} 25. hxg4 {[%clk 0:01:30.5]}
25... hxg4 {[%clk 0:00:15.8]} 26. Rh1 {[%clk 0:01:31]} 26... Rg6 {[%clk
0:00:15.7]} 27. Kf1 {[%clk 0:01:29.3]} 27... gxf3 {[%clk 0:00:14.8]} 28. gxf3
{[%clk 0:01:28.2]} 28... Qg5 {[%clk 0:00:14.4]} 29. Qf2 {[%clk 0:01:26.8]} 29...
Qg3 {[%clk 0:00:08.6]} 30. Qxg3 {[%clk 0:01:25.8]} 30... Rxg3 {[%clk 0:00:08.7]}
31. Kf2 {[%clk 0:01:23.9]} 31... Bh3 {[%clk 0:00:08.5]} 32. Rh2 {[%clk
0:01:21.1]} 32... Bc8 {[%clk 0:00:04.6]} 33. Nbxd6 {[%clk 0:01:18.5]} 33... Nxd6
{[%clk 0:00:04.5]} 34. Nxd6 {[%clk 0:01:17.7]} 34... b5 {[%clk 0:00:01.3]} 35.
Rc7 {[%clk 0:01:13.6]} 1-0

[Event "Betsys MČR v online bleskovém šachu 2021"]
[Site "Chess.com"]
[Date "2021.04.17"]
[Round "10"]
[White "JustFilip05"]
[Black "sachmaty8"]
[Result "1-0"]
[WhiteElo "2115"]
[BlackElo "1820"]
[TimeControl "180+1"]
[EndTime "10:39:46 PDT"]
[Termination "Uživatel JustFilip05 zvítězil matem"]

1. Nf3 {[%clk 0:03:00.4]} 1... Nf6 {[%clk 0:02:59.4]} 2. b3 {[%clk 0:03:01.3]}
2... d5 {[%clk 0:02:47.8]} 3. Bb2 {[%clk 0:03:02.2]} 3... e6 {[%clk 0:02:44.9]}
4. e3 {[%clk 0:03:03.1]} 4... b6 {[%clk 0:02:44.6]} 5. c4 {[%clk 0:03:04]} 5...
Bb7 {[%clk 0:02:44.4]} 6. Be2 {[%clk 0:03:02]} 6... Be7 {[%clk 0:02:44.4]} 7.
O-O {[%clk 0:03:02.5]} 7... O-O {[%clk 0:02:44.3]} 8. Nc3 {[%clk 0:03:02.2]}
8... c5 {[%clk 0:02:42.2]} 9. d4 {[%clk 0:02:57.3]} 9... Nc6 {[%clk 0:02:41.7]}
10. Rc1 {[%clk 0:02:55.3]} 10... Rc8 {[%clk 0:02:38.7]} 11. dxc5 {[%clk
0:02:43.1]} 11... Bxc5 {[%clk 0:02:35.2]} 12. cxd5 {[%clk 0:02:42.5]} 12... exd5
{[%clk 0:02:34.2]} 13. Nb5 {[%clk 0:02:42.1]} 13... Re8 {[%clk 0:02:03.5]} 14.
Nbd4 {[%clk 0:02:39.1]} 14... Ne4 {[%clk 0:01:58.9]} 15. Bb5 {[%clk 0:02:35.1]}
15... Rf8 {[%clk 0:01:41.8]} 16. Nxc6 {[%clk 0:02:25.6]} 16... Bxc6 {[%clk
0:01:41.7]} 17. Bxc6 {[%clk 0:02:26.5]} 17... Rxc6 {[%clk 0:01:41.9]} 18. b4
{[%clk 0:02:27.4]} 18... Rh6 {[%clk 0:01:27]} 19. bxc5 {[%clk 0:02:25.3]} 19...
bxc5 {[%clk 0:01:26.1]} 20. Nd2 {[%clk 0:02:23.9]} 20... Qh4 {[%clk 0:01:24.3]}
21. h3 {[%clk 0:02:16.1]} 21... Ng5 {[%clk 0:01:08.1]} 22. Nf3 {[%clk
0:02:12.9]} 22... Nxh3+ {[%clk 0:00:57.1]} 23. Kh2 {[%clk 0:02:13.2]} 23...
Nxf2+ {[%clk 0:00:49.3]} 24. Nxh4 {[%clk 0:02:13.2]} 24... Nxd1 {[%clk
0:00:48.5]} 25. Rfxd1 {[%clk 0:02:13.7]} 25... Rxh4+ {[%clk 0:00:48.4]} 26. Kg3
{[%clk 0:02:14.3]} 26... Ra4 {[%clk 0:00:48.1]} 27. a3 {[%clk 0:02:06.7]} 27...
Re4 {[%clk 0:00:37.4]} 28. Kf3 {[%clk 0:02:03.9]} 28... Rfe8 {[%clk 0:00:36.3]}
29. Rd3 {[%clk 0:01:53.3]} 29... g5 {[%clk 0:00:29.1]} 30. Rxc5 {[%clk
0:01:51.9]} 30... g4+ {[%clk 0:00:29.4]} 31. Kf2 {[%clk 0:01:51.7]} 31... h5
{[%clk 0:00:22.9]} 32. Rcxd5 {[%clk 0:01:51.6]} 32... h4 {[%clk 0:00:22.6]} 33.
Rg5+ {[%clk 0:01:51.1]} 33... Kf8 {[%clk 0:00:23.3]} 34. Rd7 {[%clk 0:01:41.1]}
34... Rb8 {[%clk 0:00:21.2]} 35. Bg7+ {[%clk 0:01:37.5]} 35... Ke8 {[%clk
0:00:20.4]} 36. Rd4 {[%clk 0:01:37]} 36... Rb2+ {[%clk 0:00:16.8]} 37. Kg1
{[%clk 0:01:36.2]} 37... Rxe3 {[%clk 0:00:16.6]} 38. Bf6 {[%clk 0:01:21.5]}
38... Re1+ {[%clk 0:00:12.7]} 39. Kh2 {[%clk 0:01:21.8]} 39... g3+ {[%clk
0:00:07.1]} 40. Kh3 {[%clk 0:01:22.7]} 40... Rh1+ {[%clk 0:00:06.9]} 41. Kg4
{[%clk 0:01:23.1]} 41... Rb8 {[%clk 0:00:06.7]} 42. Rg8# {[%clk 0:01:22.9]} 1-0

[Event "Betsys MČR v online bleskovém šachu 2021"]
[Site "Chess.com"]
[Date "2021.04.17"]
[Round "10"]
[White "Klokan64"]
[Black "povrlak60"]
[Result "1-0"]
[WhiteElo "1429"]
[BlackElo "1570"]
[TimeControl "180+1"]
[EndTime "10:39:46 PDT"]
[Termination "Uživatel Klokan64 zvítězil matem"]

1. d4 {[%clk 0:03:00.9]} 1... Nf6 {[%clk 0:02:56.2]} 2. Nf3 {[%clk 0:03:00.6]}
2... d6 {[%clk 0:02:54.6]} 3. Bg5 {[%clk 0:02:59.5]} 3... Nbd7 {[%clk
0:02:52.7]} 4. e3 {[%clk 0:02:59.1]} 4... g6 {[%clk 0:02:52.4]} 5. Bd3 {[%clk
0:02:56.7]} 5... Bg7 {[%clk 0:02:52.1]} 6. c3 {[%clk 0:02:56]} 6... O-O {[%clk
0:02:51.2]} 7. O-O {[%clk 0:02:54.6]} 7... c6 {[%clk 0:02:51.1]} 8. Re1 {[%clk
0:02:53.9]} 8... Qc7 {[%clk 0:02:51.2]} 9. Nbd2 {[%clk 0:02:50.4]} 9... e5
{[%clk 0:02:50.9]} 10. dxe5 {[%clk 0:02:37.3]} 10... dxe5 {[%clk 0:02:49.7]} 11.
Nc4 {[%clk 0:02:33.2]} 11... Re8 {[%clk 0:02:35.3]} 12. Bc2 {[%clk 0:02:11.7]}
12... Nc5 {[%clk 0:02:32.8]} 13. Qd6 {[%clk 0:02:00.1]} 13... Qxd6 {[%clk
0:02:25.5]} 14. Nxd6 {[%clk 0:01:59.7]} 14... Re6 {[%clk 0:02:06.7]} 15. Nxc8
{[%clk 0:01:51.8]} 15... Rxc8 {[%clk 0:02:05.4]} 16. Rad1 {[%clk 0:01:45.4]}
16... Ree8 {[%clk 0:01:57.7]} 17. h3 {[%clk 0:01:29.1]} 17... h6 {[%clk
0:01:54.3]} 18. Bh4 {[%clk 0:01:28.1]} 18... g5 {[%clk 0:01:29.7]} 19. Bg3
{[%clk 0:01:27]} 19... Nh5 {[%clk 0:01:26.4]} 20. Bh2 {[%clk 0:01:22.5]} 20...
Kf8 {[%clk 0:01:10.9]} 21. Rd6 {[%clk 0:01:17.5]} 21... e4 {[%clk 0:00:52.6]}
22. Nd4 {[%clk 0:01:09.5]} 22... Rcd8 {[%clk 0:00:26.7]} 23. Rxd8 {[%clk
0:01:06.7]} 23... Rxd8 {[%clk 0:00:26.5]} 24. Nf5 {[%clk 0:01:00.6]} 24... Rd2
{[%clk 0:00:24.6]} 25. Rd1 {[%clk 0:00:51.4]} 25... Nf6 {[%clk 0:00:20.4]} 26.
Rxd2 {[%clk 0:00:50.5]} 26... Nd5 {[%clk 0:00:12.6]} 27. c4 {[%clk 0:00:47.5]}
27... Nb4 {[%clk 0:00:11.5]} 28. Rd8# {[%clk 0:00:45.4]} 1-0